[Event "Titled Tuesday Blitz November 22 Early 2022"]
[White "Abdyzhapar, Asylbek"]
[Black "Dudzinski, Pawel"]
[WhiteFideId "13800337"]
[BlackFideId "1117890"]
[WhiteElo "2323"]
[BlackElo "2086"]
[Result "1-0"]
[Round "01"]
[TimeControl "180+1"]
[Date "2022.11.23"]
[WhiteClock "0:01:52"]
[BlackClock "0:00:17"]

1. e4 {[%clk 0:02:59]}  c6 {[%clk 0:02:59]} 2. d4 {[%clk 0:02:58]}  d5 {[%clk 0:03:00]} 3. exd5 {[%clk 0:02:58]}  cxd5 {[%clk 0:03:00]} 4. c3 {[%clk 0:02:59]}  Nc6 {[%clk 0:02:59]} 5. Bd3 {[%clk 0:02:58]}  Nf6 {[%clk 0:02:57]} 6. Bf4 {[%clk 0:02:58]}  g6 {[%clk 0:02:57]} 7. Nf3 {[%clk 0:02:57]}  Bf5 {[%clk 0:02:57]} 8. Bxf5 {[%clk 0:02:56]}  gxf5 {[%clk 0:02:58]} 9. O-O {[%clk 0:02:55]}  e6 {[%clk 0:02:59]} 10. Re1 {[%clk 0:02:54]}  Be7 {[%clk 0:02:53]} 11. Nbd2 {[%clk 0:02:52]}  O-O {[%clk 0:02:52]} 12. Ne5 {[%clk 0:02:52]}  Nxe5 {[%clk 0:02:49]} 13. Bxe5 {[%clk 0:02:51]}  Bd6 {[%clk 0:02:35]} 14. Nf1 {[%clk 0:02:50]}  Bxe5 {[%clk 0:02:34]} 15. Rxe5 {[%clk 0:02:49]}  Ng4 {[%clk 0:02:13]} 16. Re1 {[%clk 0:02:47]}  Qg5 {[%clk 0:02:06]} 17. Qd2 {[%clk 0:02:42]}  Qxd2 {[%clk 0:02:00]} 18. Nxd2 {[%clk 0:02:42]}  Rfc8 {[%clk 0:01:59]} 19. a4 {[%clk 0:02:40]}  b6 {[%clk 0:01:48]} 20. a5 {[%clk 0:02:39]}  b5 {[%clk 0:01:45]} 21. a6 {[%clk 0:02:38]}  b4 {[%clk 0:01:41]} 22. Rec1 {[%clk 0:02:27]}  bxc3 {[%clk 0:01:39]} 23. Rxc3 {[%clk 0:02:24]}  Rab8 {[%clk 0:01:29]} 24. Rxc8+ {[%clk 0:02:20]}  Rxc8 {[%clk 0:01:26]} 25. h3 {[%clk 0:02:20]}  Nf6 {[%clk 0:01:21]} 26. Nb3 {[%clk 0:02:19]}  Rc2 {[%clk 0:01:11]} 27. Na5 {[%clk 0:02:18]}  Ne4 {[%clk 0:01:01]} 28. b4 {[%clk 0:02:18]}  Nxf2 {[%clk 0:00:50]} 29. b5 {[%clk 0:02:18]}  Ne4 {[%clk 0:00:40]} 30. Nc6 {[%clk 0:02:13]}  Rb2 {[%clk 0:00:21]} 31. Nxa7 {[%clk 0:02:12]}  Nd6 {[%clk 0:00:20]} 32. Rc1 {[%clk 0:02:05]}  Kg7 {[%clk 0:00:18]} 33. Rc5 {[%clk 0:02:01]}  Ra2 {[%clk 0:00:16]} 34. Nc8 {[%clk 0:01:58]}  Nxb5 {[%clk 0:00:15]} 35. Rxb5 {[%clk 0:01:57]}  Rxa6 {[%clk 0:00:16]} 36. Rb4 {[%clk 0:01:57]}  Ra1+ {[%clk 0:00:15]} 37. Kh2 {[%clk 0:01:56]}  Rc1 {[%clk 0:00:16]} 38. Nd6 {[%clk 0:01:53]}  Rc4 {[%clk 0:00:17]} 39. Nxc4 {[%clk 0:01:52]} 1-0


[Site "https://www.chess.com"]

[Event "Titled Tuesday Blitz November 22 Early 2022"]
[White "Adithya A Chullikkad"]
[Black "Ronka, Erik"]
[WhiteFideId "45078734"]
[BlackFideId "505080"]
[WhiteElo "2106"]
[BlackElo "2264"]
[Result "1/2-1/2"]
[Round "01"]
[TimeControl "180+1"]
[Date "2022.11.23"]
[WhiteClock "0:00:18"]
[BlackClock "0:00:04"]

1. e4 {[%clk 0:02:59]}  c6 {[%clk 0:02:56]} 2. d4 {[%clk 0:02:57]}  d5 {[%clk 0:02:57]} 3. Nc3 {[%clk 0:02:57]}  dxe4 {[%clk 0:02:57]} 4. Nxe4 {[%clk 0:02:57]}  Bf5 {[%clk 0:02:56]} 5. Ng3 {[%clk 0:02:56]}  Bg6 {[%clk 0:02:56]} 6. h4 {[%clk 0:02:54]}  h6 {[%clk 0:02:57]} 7. h5 {[%clk 0:02:54]}  Bh7 {[%clk 0:02:57]} 8. Nf3 {[%clk 0:02:54]}  Nd7 {[%clk 0:02:52]} 9. Bd3 {[%clk 0:02:54]}  Bxd3 {[%clk 0:02:51]} 10. Qxd3 {[%clk 0:02:55]}  e6 {[%clk 0:02:52]} 11. Bd2 {[%clk 0:02:55]}  Qc7 {[%clk 0:02:50]} 12. O-O-O {[%clk 0:02:54]}  O-O-O {[%clk 0:02:47]} 13. c4 {[%clk 0:02:53]}  Ngf6 {[%clk 0:02:45]} 14. Ne4 {[%clk 0:02:54]}  c5 {[%clk 0:02:43]} 15. Kb1 {[%clk 0:02:43]}  cxd4 {[%clk 0:02:40]} 16. g3 {[%clk 0:02:28]}  e5 {[%clk 0:02:14]} 17. Rde1 {[%clk 0:02:17]}  Nxe4 {[%clk 0:02:08]} 18. Qxe4 {[%clk 0:02:14]}  f6 {[%clk 0:02:04]} 19. Nh4 {[%clk 0:02:10]}  Nc5 {[%clk 0:01:57]} 20. Qg4+ {[%clk 0:02:08]}  Qd7 {[%clk 0:01:55]} 21. Qd1 {[%clk 0:01:52]}  Bd6 {[%clk 0:01:38]} 22. b4 {[%clk 0:01:28]}  Nd3 {[%clk 0:01:24]} 23. c5 {[%clk 0:01:16]}  Nxe1 {[%clk 0:00:47]} 24. cxd6 {[%clk 0:01:15]}  Nd3 {[%clk 0:00:47]} 25. Qc2+ {[%clk 0:01:15]}  Kb8 {[%clk 0:00:45]} 26. Qxd3 {[%clk 0:01:15]}  Qxd6 {[%clk 0:00:42]} 27. Rc1 {[%clk 0:01:05]}  Rc8 {[%clk 0:00:36]} 28. Rxc8+ {[%clk 0:01:01]}  Rxc8 {[%clk 0:00:37]} 29. Nf5 {[%clk 0:01:01]}  Qc7 {[%clk 0:00:30]} 30. f4 {[%clk 0:00:57]}  Ka8 {[%clk 0:00:28]} 31. fxe5 {[%clk 0:00:53]}  fxe5 {[%clk 0:00:29]} 32. Qe4 {[%clk 0:00:46]}  Re8 {[%clk 0:00:18]} 33. Nxd4 {[%clk 0:00:43]}  Qc4 {[%clk 0:00:17]} 34. Qg6 {[%clk 0:00:41]}  Rd8 {[%clk 0:00:13]} 35. Nb3 {[%clk 0:00:38]}  e4 {[%clk 0:00:09]} 36. Nc5 {[%clk 0:00:35]}  e3 {[%clk 0:00:08]} 37. Qxg7 {[%clk 0:00:33]}  Qd5 {[%clk 0:00:05]} 38. Bxe3 {[%clk 0:00:32]}  b6 {[%clk 0:00:05]} 39. Nb7 {[%clk 0:00:20]}  Qxb7 {[%clk 0:00:05]} 40. Qxb7+ {[%clk 0:00:21]}  Kxb7 {[%clk 0:00:05]} 41. Bxh6 {[%clk 0:00:22]}  Rd5 {[%clk 0:00:04]} 42. g4 {[%clk 0:00:20]}  Rd4 {[%clk 0:00:05]} 43. g5 {[%clk 0:00:21]}  Rxb4+ {[%clk 0:00:06]} 44. Kc2 {[%clk 0:00:20]}  Rh4 {[%clk 0:00:06]} 45. g6 {[%clk 0:00:19]}  Rxh5 {[%clk 0:00:05]} 46. g7 {[%clk 0:00:20]}  Rh2+ {[%clk 0:00:05]} 47. Kb3 {[%clk 0:00:20]}  Rg2 {[%clk 0:00:06]} 48. a4 {[%clk 0:00:19]}  Kc6 {[%clk 0:00:07]} 49. Kb4 {[%clk 0:00:19]}  a6 {[%clk 0:00:07]} 50. Kb3 {[%clk 0:00:20]}  Rg4 {[%clk 0:00:07]} 51. Ka3 {[%clk 0:00:20]}  Kc5 {[%clk 0:00:07]} 52. Be3+ {[%clk 0:00:19]}  Kc6 {[%clk 0:00:05]} 53. Bh6 {[%clk 0:00:19]}  Kd5 {[%clk 0:00:05]} 54. Kb3 {[%clk 0:00:19]}  Kc6 {[%clk 0:00:04]} 55. Ka3 {[%clk 0:00:18]} 1/2-1/2


[Site "https://www.chess.com"]

[Event "Titled Tuesday Blitz November 22 Early 2022"]
[White "Al-Tarboush, Ward"]
[Black "Wieczorek, Zbigniew"]
[WhiteFideId "7601450"]
[BlackFideId "1102001"]
[WhiteElo "2273"]
[BlackElo "2177"]
[Result "1-0"]
[Round "01"]
[TimeControl "180+1"]
[Date "2022.11.23"]
[WhiteClock "0:00:29"]
[BlackClock "0:00:18"]

1. e4 {[%clk 0:03:00]}  g6 {[%clk 0:02:59]} 2. d4 {[%clk 0:03:00]}  Bg7 {[%clk 0:03:00]} 3. Be3 {[%clk 0:02:58]}  c6 {[%clk 0:02:59]} 4. Nd2 {[%clk 0:02:50]}  d5 {[%clk 0:03:00]} 5. e5 {[%clk 0:02:51]}  f6 {[%clk 0:02:59]} 6. Ngf3 {[%clk 0:02:50]}  Bg4 {[%clk 0:02:58]} 7. h3 {[%clk 0:02:49]}  Bxf3 {[%clk 0:02:57]} 8. Nxf3 {[%clk 0:02:50]}  Nd7 {[%clk 0:02:57]} 9. Bf4 {[%clk 0:02:42]}  fxe5 {[%clk 0:02:55]} 10. dxe5 {[%clk 0:02:41]}  e6 {[%clk 0:02:54]} 11. Bd3 {[%clk 0:02:41]}  Ne7 {[%clk 0:02:52]} 12. Ng5 {[%clk 0:02:40]}  Nf8 {[%clk 0:02:52]} 13. Qg4 {[%clk 0:02:39]}  Qd7 {[%clk 0:02:51]} 14. O-O {[%clk 0:02:39]}  Nf5 {[%clk 0:02:47]} 15. c4 {[%clk 0:02:36]}  O-O-O {[%clk 0:02:21]} 16. a4 {[%clk 0:02:22]}  d4 {[%clk 0:02:17]} 17. a5 {[%clk 0:02:18]}  Qc7 {[%clk 0:01:59]} 18. a6 {[%clk 0:02:12]}  b6 {[%clk 0:01:58]} 19. b4 {[%clk 0:02:11]}  h6 {[%clk 0:01:45]} 20. Nxe6 {[%clk 0:01:57]}  Nxe6 {[%clk 0:01:43]} 21. Qxg6 {[%clk 0:01:57]}  Nxf4 {[%clk 0:01:38]} 22. Qxf5+ {[%clk 0:01:57]}  Kb8 {[%clk 0:01:38]} 23. Qxf4 {[%clk 0:01:56]}  Bxe5 {[%clk 0:01:34]} 24. Qe4 {[%clk 0:01:52]}  Rde8 {[%clk 0:01:31]} 25. Kh1 {[%clk 0:01:49]}  Rhf8 {[%clk 0:01:25]} 26. b5 {[%clk 0:01:47]}  Rf4 {[%clk 0:01:14]} 27. Qg6 {[%clk 0:01:42]}  Ref8 {[%clk 0:01:02]} 28. bxc6 {[%clk 0:01:42]}  R4f6 {[%clk 0:00:58]} 29. Qg4 {[%clk 0:01:37]}  Bd6 {[%clk 0:00:57]} 30. Qd7 {[%clk 0:01:32]}  Rxf2 {[%clk 0:00:53]} 31. Rxf2 {[%clk 0:01:30]}  Rxf2 {[%clk 0:00:54]} 32. Re1 {[%clk 0:01:28]}  Rf8 {[%clk 0:00:49]} 33. Bf5 {[%clk 0:01:17]}  Rd8 {[%clk 0:00:41]} 34. Re8 {[%clk 0:01:01]}  Qxd7 {[%clk 0:00:41]} 35. cxd7 {[%clk 0:01:02]}  Kc7 {[%clk 0:00:39]} 36. Kg1 {[%clk 0:00:54]}  d3 {[%clk 0:00:20]} 37. Kf2 {[%clk 0:00:54]}  d2 {[%clk 0:00:20]} 38. Ke2 {[%clk 0:00:53]}  Bf4 {[%clk 0:00:20]} 39. h4 {[%clk 0:00:47]}  Bg3 {[%clk 0:00:17]} 40. Kxd2 {[%clk 0:00:41]}  Bxh4 {[%clk 0:00:17]} 41. Ke3 {[%clk 0:00:38]}  Bg5+ {[%clk 0:00:18]} 42. Ke4 {[%clk 0:00:38]}  Kd6 {[%clk 0:00:18]} 43. Bg4 {[%clk 0:00:31]}  Kc5 {[%clk 0:00:18]} 44. Ke5 {[%clk 0:00:29]}  Kxc4 {[%clk 0:00:18]} 45. Kd6 {[%clk 0:00:29]}  b5 {[%clk 0:00:18]} 46. Kc7 {[%clk 0:00:28]}  b4 {[%clk 0:00:17]} 47. Rxd8 {[%clk 0:00:28]}  Bxd8+ {[%clk 0:00:17]} 48. Kxd8 {[%clk 0:00:29]}  b3 {[%clk 0:00:18]} 49. Be6+ {[%clk 0:00:29]} 1-0


[Site "https://www.chess.com"]

[Event "Titled Tuesday Blitz November 22 Early 2022"]
[White "Avazkhonov, Alikhon"]
[Black "Pranav Anand"]
[WhiteFideId "14208504"]
[BlackFideId "46626786"]
[WhiteElo "1739"]
[BlackElo "2402"]
[Result "0-1"]
[Round "01"]
[TimeControl "180+1"]
[Date "2022.11.23"]
[WhiteClock "0:00:04"]
[BlackClock "0:01:29"]

1. d4 {[%clk 0:02:56]}  Nf6 {[%clk 0:03:00]} 2. c4 {[%clk 0:02:57]}  e6 {[%clk 0:03:00]} 3. Nc3 {[%clk 0:02:57]}  d5 {[%clk 0:02:59]} 4. cxd5 {[%clk 0:02:58]}  exd5 {[%clk 0:02:59]} 5. Bg5 {[%clk 0:02:58]}  c6 {[%clk 0:02:59]} 6. e3 {[%clk 0:02:58]}  Be7 {[%clk 0:03:00]} 7. Bd3 {[%clk 0:02:59]}  Nbd7 {[%clk 0:03:00]} 8. Qc2 {[%clk 0:02:58]}  h6 {[%clk 0:03:00]} 9. Bh4 {[%clk 0:02:59]}  Nh5 {[%clk 0:03:01]} 10. Bxe7 {[%clk 0:02:57]}  Qxe7 {[%clk 0:03:02]} 11. Nf3 {[%clk 0:02:56]}  Nf4 {[%clk 0:03:00]} 12. O-O-O {[%clk 0:02:47]}  Nxd3+ {[%clk 0:02:59]} 13. Qxd3 {[%clk 0:02:47]}  Nb6 {[%clk 0:02:59]} 14. Ne5 {[%clk 0:02:47]}  Be6 {[%clk 0:02:55]} 15. Kb1 {[%clk 0:02:47]}  h5 {[%clk 0:02:50]} 16. Ka1 {[%clk 0:02:18]}  O-O-O {[%clk 0:02:47]} 17. Rb1 {[%clk 0:02:15]}  g6 {[%clk 0:02:44]} 18. Rbc1 {[%clk 0:00:55]}  Bf5 {[%clk 0:02:40]} 19. Qd1 {[%clk 0:00:54]}  Kb8 {[%clk 0:02:40]} 20. Na4 {[%clk 0:00:54]}  f6 {[%clk 0:02:29]} 21. Nxb6 {[%clk 0:00:54]}  axb6 {[%clk 0:02:30]} 22. Nd3 {[%clk 0:00:51]}  Be4 {[%clk 0:02:26]} 23. f3 {[%clk 0:00:32]}  Bf5 {[%clk 0:02:26]} 24. Re1 {[%clk 0:00:31]}  h4 {[%clk 0:02:22]} 25. Qb3 {[%clk 0:00:29]}  Qc7 {[%clk 0:02:20]} 26. h3 {[%clk 0:00:27]}  Rhe8 {[%clk 0:02:14]} 27. Nb4 {[%clk 0:00:26]}  b5 {[%clk 0:02:07]} 28. Rxc6 {[%clk 0:00:24]}  Qa5 {[%clk 0:01:55]} 29. Ra6 {[%clk 0:00:22]}  Qc7 {[%clk 0:01:53]} 30. Qa3 {[%clk 0:00:18]}  Qc4 {[%clk 0:01:40]} 31. Ra8+ {[%clk 0:00:13]}  Kc7 {[%clk 0:01:40]} 32. Qa5+ {[%clk 0:00:14]}  Kd7 {[%clk 0:01:41]} 33. Rxd8+ {[%clk 0:00:15]}  Rxd8 {[%clk 0:01:42]} 34. e4 {[%clk 0:00:11]}  Rc8 {[%clk 0:01:41]} 35. a3 {[%clk 0:00:10]}  dxe4 {[%clk 0:01:39]} 36. fxe4 {[%clk 0:00:11]}  Be6 {[%clk 0:01:36]} 37. d5 {[%clk 0:00:11]}  Bf7 {[%clk 0:01:36]} 38. e5 {[%clk 0:00:08]}  fxe5 {[%clk 0:01:34]} 39. Rxe5 {[%clk 0:00:08]}  Qc1+ {[%clk 0:01:30]} 40. Ka2 {[%clk 0:00:09]}  Qc4+ {[%clk 0:01:31]} 41. Ka1 {[%clk 0:00:09]}  Qf1+ {[%clk 0:01:31]} 42. Ka2 {[%clk 0:00:10]}  Qf4 {[%clk 0:01:31]} 43. Re2 {[%clk 0:00:05]}  Qc4+ {[%clk 0:01:31]} 44. Ka1 {[%clk 0:00:06]}  Qxe2 {[%clk 0:01:32]} 45. Qb6 {[%clk 0:00:06]}  Qd1+ {[%clk 0:01:31]} 46. Ka2 {[%clk 0:00:05]}  Bxd5+ {[%clk 0:01:31]} 47. Nxd5 {[%clk 0:00:05]}  Qxd5+ {[%clk 0:01:32]} 48. Kb1 {[%clk 0:00:06]}  Qd3+ {[%clk 0:01:33]} 49. Ka2 {[%clk 0:00:06]}  Qc4+ {[%clk 0:01:33]} 50. Kb1 {[%clk 0:00:07]}  Qd5 {[%clk 0:01:32]} 51. Qg1 {[%clk 0:00:04]}  Qd3+ {[%clk 0:01:31]} 52. Ka1 {[%clk 0:00:04]}  Qd2 {[%clk 0:01:28]} 53. Qb6 {[%clk 0:00:03]}  Rc1+ {[%clk 0:01:28]} 54. Ka2 {[%clk 0:00:04]}  Qd5+ {[%clk 0:01:29]} 0-1


[Site "https://www.chess.com"]

[Event "Titled Tuesday Blitz November 22 Early 2022"]
[White "Averjanov, Alexey"]
[Black "De Souza, Cristiano Gomes"]
[WhiteFideId "14109867"]
[BlackFideId "2151758"]
[WhiteElo "2603"]
[BlackElo "2068"]
[Result "1-0"]
[Round "01"]
[TimeControl "180+1"]
[Date "2022.11.23"]
[WhiteClock "0:02:01"]
[BlackClock "0:01:29"]

1. d4 {[%clk 0:03:00]}  Nf6 {[%clk 0:02:57]} 2. c4 {[%clk 0:03:00]}  g6 {[%clk 0:02:56]} 3. Nc3 {[%clk 0:03:00]}  d6 {[%clk 0:02:56]} 4. e4 {[%clk 0:03:00]}  Bg7 {[%clk 0:02:56]} 5. Be2 {[%clk 0:03:01]}  O-O {[%clk 0:02:55]} 6. Nf3 {[%clk 0:03:01]}  e5 {[%clk 0:02:52]} 7. O-O {[%clk 0:03:01]}  Nc6 {[%clk 0:02:46]} 8. d5 {[%clk 0:03:00]}  Ne7 {[%clk 0:02:44]} 9. Ne1 {[%clk 0:03:01]}  Ne8 {[%clk 0:02:42]} 10. Be3 {[%clk 0:03:00]}  f5 {[%clk 0:02:43]} 11. f3 {[%clk 0:03:01]}  f4 {[%clk 0:02:43]} 12. Bf2 {[%clk 0:03:01]}  h5 {[%clk 0:02:43]} 13. c5 {[%clk 0:03:01]}  Rf7 {[%clk 0:02:40]} 14. a4 {[%clk 0:02:59]}  Bf8 {[%clk 0:02:39]} 15. a5 {[%clk 0:02:58]}  g5 {[%clk 0:02:33]} 16. cxd6 {[%clk 0:02:58]}  Nxd6 {[%clk 0:02:29]} 17. Nd3 {[%clk 0:02:58]}  Ng6 {[%clk 0:02:25]} 18. Nc5 {[%clk 0:02:58]}  Rg7 {[%clk 0:02:22]} 19. a6 {[%clk 0:02:57]}  b6 {[%clk 0:02:22]} 20. Ne6 {[%clk 0:02:58]}  Bxe6 {[%clk 0:02:20]} 21. dxe6 {[%clk 0:02:57]}  Kh7 {[%clk 0:02:20]} 22. Qb3 {[%clk 0:02:47]}  Ne7 {[%clk 0:02:15]} 23. h3 {[%clk 0:02:45]}  Qe8 {[%clk 0:02:06]} 24. Nd5 {[%clk 0:02:44]}  Nxd5 {[%clk 0:02:05]} 25. exd5 {[%clk 0:02:38]}  Be7 {[%clk 0:02:01]} 26. Qc2+ {[%clk 0:02:34]}  Kh6 {[%clk 0:02:00]} 27. Qxc7 {[%clk 0:02:30]}  e4 {[%clk 0:01:51]} 28. Bd4 {[%clk 0:02:20]}  Rh7 {[%clk 0:01:35]} 29. fxe4 {[%clk 0:02:12]}  Nxe4 {[%clk 0:01:34]} 30. Bd3 {[%clk 0:02:04]}  Bc5 {[%clk 0:01:31]} 31. Qe5 {[%clk 0:02:02]}  Bxd4+ {[%clk 0:01:29]} 32. Qxd4 {[%clk 0:02:01]} 1-0


[Site "https://www.chess.com"]

[Event "Titled Tuesday Blitz November 22 Early 2022"]
[White "Balabayeva, Xeniya"]
[Black "Zhigalko, Sergei"]
[WhiteFideId "13719688"]
[BlackFideId "13502956"]
[WhiteElo "2041"]
[BlackElo "2662"]
[Result "0-1"]
[Round "01"]
[TimeControl "180+1"]
[Date "2022.11.23"]
[WhiteClock "0:00:00"]
[BlackClock "0:00:04"]

1. e4 {[%clk 0:02:52]}  c5 {[%clk 0:02:59]} 2. Nf3 {[%clk 0:02:50]}  Nc6 {[%clk 0:03:00]} 3. Bb5 {[%clk 0:02:47]}  Nf6 {[%clk 0:03:00]} 4. d3 {[%clk 0:02:34]}  Qa5+ {[%clk 0:03:00]} 5. Nc3 {[%clk 0:02:30]}  Nd4 {[%clk 0:03:00]} 6. Bc4 {[%clk 0:02:14]}  b5 {[%clk 0:03:00]} 7. Bd5 {[%clk 0:02:06]}  Rb8 {[%clk 0:02:57]} 8. Bd2 {[%clk 0:02:04]}  e6 {[%clk 0:02:53]} 9. Nxd4 {[%clk 0:01:54]}  cxd4 {[%clk 0:02:47]} 10. Ne2 {[%clk 0:01:53]}  Qb6 {[%clk 0:02:47]} 11. Bb3 {[%clk 0:01:53]}  a5 {[%clk 0:02:47]} 12. a4 {[%clk 0:01:51]}  b4 {[%clk 0:02:47]} 13. O-O {[%clk 0:01:43]}  Bb7 {[%clk 0:02:47]} 14. f4 {[%clk 0:01:41]}  Ng4 {[%clk 0:02:37]} 15. Qe1 {[%clk 0:01:37]}  h5 {[%clk 0:02:22]} 16. h3 {[%clk 0:01:33]}  Ne3 {[%clk 0:02:21]} 17. Bxe3 {[%clk 0:01:32]}  dxe3 {[%clk 0:02:22]} 18. Qg3 {[%clk 0:01:31]}  h4 {[%clk 0:02:09]} 19. Qf3 {[%clk 0:00:44]}  f5 {[%clk 0:02:01]} 20. Rae1 {[%clk 0:00:42]}  Bc5 {[%clk 0:01:52]} 21. Kh1 {[%clk 0:00:39]}  Rc8 {[%clk 0:01:37]} 22. Bc4 {[%clk 0:00:35]}  Kd8 {[%clk 0:01:24]} 23. Nc1 {[%clk 0:00:33]}  Bd4 {[%clk 0:01:17]} 24. Nb3 {[%clk 0:00:20]}  fxe4 {[%clk 0:01:16]} 25. Qe2 {[%clk 0:00:20]}  Bxb2 {[%clk 0:00:49]} 26. Qxe3 {[%clk 0:00:07]}  Qxe3 {[%clk 0:00:40]} 27. Rxe3 {[%clk 0:00:08]}  d5 {[%clk 0:00:41]} 28. Bb5 {[%clk 0:00:07]}  Rxc2 {[%clk 0:00:39]} 29. dxe4 {[%clk 0:00:07]}  d4 {[%clk 0:00:39]} 30. Ree1 {[%clk 0:00:06]}  Bc3 {[%clk 0:00:37]} 31. Rd1 {[%clk 0:00:06]}  Bxe4 {[%clk 0:00:36]} 32. Rg1 {[%clk 0:00:07]}  Ke7 {[%clk 0:00:19]} 33. Nxd4 {[%clk 0:00:06]}  Bxd4 {[%clk 0:00:20]} 34. Rxd4 {[%clk 0:00:07]}  Bd5 {[%clk 0:00:20]} 35. f5 {[%clk 0:00:05]}  Rc3 {[%clk 0:00:20]} 36. Kh2 {[%clk 0:00:05]}  Re3 {[%clk 0:00:13]} 37. fxe6 {[%clk 0:00:05]}  Bxe6 {[%clk 0:00:14]} 38. Rgd1 {[%clk 0:00:04]}  Rc8 {[%clk 0:00:10]} 39. Bd7 {[%clk 0:00:04]}  Rc2 {[%clk 0:00:10]} 40. Bxe6 {[%clk 0:00:03]}  Rxe6 {[%clk 0:00:10]} 41. Rxh4 {[%clk 0:00:03]}  Rg6 {[%clk 0:00:08]} 42. Re4+ {[%clk 0:00:03]}  Kf7 {[%clk 0:00:07]} 43. Rf1+ {[%clk 0:00:01]}  Kg8 {[%clk 0:00:06]} 44. Rg1 {[%clk 0:00:01]}  Ra2 {[%clk 0:00:06]} 45. h4 {[%clk 0:00:01]}  Rxa4 {[%clk 0:00:06]} 46. Rf1 {[%clk 0:00:01]}  Ra2 {[%clk 0:00:05]} 47. Rg1 {[%clk 0:00:01]}  Rc2 {[%clk 0:00:05]} 48. h5 {[%clk 0:00:00]}  Rh6 {[%clk 0:00:04]} 0-1


[Site "https://www.chess.com"]

[Event "Titled Tuesday Blitz November 22 Early 2022"]
[White "Bazeev, German"]
[Black "Urquhart, Ed"]
[WhiteFideId "24119350"]
[BlackFideId "2603748"]
[WhiteElo "2493"]
[BlackElo "2184"]
[Result "1/2-1/2"]
[Round "01"]
[TimeControl "180+1"]
[Date "2022.11.23"]
[WhiteClock "0:00:23"]
[BlackClock "0:00:13"]

1. d3 {[%clk 0:02:44]}  d5 {[%clk 0:02:59]} 2. Nf3 {[%clk 0:02:42]}  Nf6 {[%clk 0:02:59]} 3. g3 {[%clk 0:02:41]}  Bg4 {[%clk 0:02:57]} 4. Bg2 {[%clk 0:02:41]}  e6 {[%clk 0:02:57]} 5. O-O {[%clk 0:02:41]}  Be7 {[%clk 0:02:57]} 6. c4 {[%clk 0:02:39]}  O-O {[%clk 0:02:57]} 7. Nc3 {[%clk 0:02:39]}  Nc6 {[%clk 0:02:55]} 8. cxd5 {[%clk 0:02:24]}  exd5 {[%clk 0:02:54]} 9. d4 {[%clk 0:02:23]}  Re8 {[%clk 0:02:50]} 10. Bg5 {[%clk 0:02:21]}  Ne4 {[%clk 0:02:40]} 11. Bxe7 {[%clk 0:02:20]}  Rxe7 {[%clk 0:02:32]} 12. e3 {[%clk 0:02:19]}  Nxc3 {[%clk 0:02:28]} 13. bxc3 {[%clk 0:02:19]}  Na5 {[%clk 0:02:29]} 14. Qc2 {[%clk 0:02:13]}  Bxf3 {[%clk 0:02:23]} 15. Bxf3 {[%clk 0:02:12]}  Nc4 {[%clk 0:02:23]} 16. Rfe1 {[%clk 0:02:07]}  c6 {[%clk 0:02:21]} 17. a4 {[%clk 0:02:05]}  Re6 {[%clk 0:02:11]} 18. Be2 {[%clk 0:02:04]}  Nd6 {[%clk 0:02:10]} 19. c4 {[%clk 0:02:05]}  dxc4 {[%clk 0:02:08]} 20. Bxc4 {[%clk 0:02:06]}  Nxc4 {[%clk 0:02:08]} 21. Qxc4 {[%clk 0:02:07]}  Qg5 {[%clk 0:01:56]} 22. Rec1 {[%clk 0:02:02]}  h5 {[%clk 0:01:53]} 23. Qe2 {[%clk 0:01:55]}  h4 {[%clk 0:01:50]} 24. Rc5 {[%clk 0:01:55]}  Qg6 {[%clk 0:01:41]} 25. Qh5 {[%clk 0:01:47]}  Qxh5 {[%clk 0:01:40]} 26. Rxh5 {[%clk 0:01:48]}  hxg3 {[%clk 0:01:40]} 27. hxg3 {[%clk 0:01:49]}  Rd8 {[%clk 0:01:35]} 28. Ra5 {[%clk 0:01:32]}  a6 {[%clk 0:01:34]} 29. Rb1 {[%clk 0:01:31]}  Rd7 {[%clk 0:01:35]} 30. Rc5 {[%clk 0:01:29]}  Kf8 {[%clk 0:01:33]} 31. a5 {[%clk 0:01:27]}  Ke7 {[%clk 0:01:32]} 32. Kg2 {[%clk 0:01:20]}  Kd8 {[%clk 0:01:27]} 33. Rc3 {[%clk 0:01:16]}  Rh6 {[%clk 0:01:25]} 34. g4 {[%clk 0:01:10]}  g5 {[%clk 0:01:23]} 35. Rc5 {[%clk 0:01:09]}  f6 {[%clk 0:01:23]} 36. Rc3 {[%clk 0:00:55]}  Kc8 {[%clk 0:01:21]} 37. Rb2 {[%clk 0:00:52]}  Rd5 {[%clk 0:01:17]} 38. Rc5 {[%clk 0:00:51]}  Rd7 {[%clk 0:01:11]} 39. Rf5 {[%clk 0:00:45]}  Rdh7 {[%clk 0:01:07]} 40. Kf3 {[%clk 0:00:44]}  Re7 {[%clk 0:01:01]} 41. Rc2 {[%clk 0:00:41]}  Kd7 {[%clk 0:00:53]} 42. d5 {[%clk 0:00:40]}  cxd5 {[%clk 0:00:52]} 43. Rxd5+ {[%clk 0:00:41]}  Ke8 {[%clk 0:00:51]} 44. Rc8+ {[%clk 0:00:40]}  Kf7 {[%clk 0:00:51]} 45. Rdd8 {[%clk 0:00:41]}  Rh3+ {[%clk 0:00:49]} 46. Kg2 {[%clk 0:00:40]}  Rh4 {[%clk 0:00:50]} 47. Rd4 {[%clk 0:00:40]}  Rh6 {[%clk 0:00:29]} 48. Rb4 {[%clk 0:00:38]}  Rh7 {[%clk 0:00:23]} 49. Rb8 {[%clk 0:00:36]}  Kg6 {[%clk 0:00:23]} 50. Kf3 {[%clk 0:00:35]}  Rhf7 {[%clk 0:00:23]} 51. Rb6 {[%clk 0:00:34]}  Rd7 {[%clk 0:00:23]} 52. Rb4 {[%clk 0:00:33]}  Rde7 {[%clk 0:00:23]} 53. Rd8 {[%clk 0:00:32]}  Rc7 {[%clk 0:00:23]} 54. Rd5 {[%clk 0:00:32]}  Rc2 {[%clk 0:00:20]} 55. Kg3 {[%clk 0:00:32]}  Rcc7 {[%clk 0:00:20]} 56. f4 {[%clk 0:00:32]}  gxf4+ {[%clk 0:00:20]} 57. exf4 {[%clk 0:00:33]}  Rc3+ {[%clk 0:00:19]} 58. Kf2 {[%clk 0:00:34]}  Rfc7 {[%clk 0:00:17]} 59. Re4 {[%clk 0:00:33]}  Rc2+ {[%clk 0:00:17]} 60. Re2 {[%clk 0:00:33]}  Rxe2+ {[%clk 0:00:17]} 61. Kxe2 {[%clk 0:00:34]}  Rc4 {[%clk 0:00:16]} 62. Ke3 {[%clk 0:00:34]}  Ra4 {[%clk 0:00:16]} 63. Kf3 {[%clk 0:00:34]}  Ra3+ {[%clk 0:00:17]} 64. Kg2 {[%clk 0:00:33]}  Ra2+ {[%clk 0:00:17]} 65. Kg3 {[%clk 0:00:34]}  Ra3+ {[%clk 0:00:17]} 66. Kh4 {[%clk 0:00:34]}  Ra4 {[%clk 0:00:18]} 67. f5+ {[%clk 0:00:30]}  Kf7 {[%clk 0:00:18]} 68. Rd7+ {[%clk 0:00:30]}  Ke8 {[%clk 0:00:18]} 69. Rxb7 {[%clk 0:00:30]}  Rxa5 {[%clk 0:00:18]} 70. Kh5 {[%clk 0:00:30]}  Ra4 {[%clk 0:00:18]} 71. Rb1 {[%clk 0:00:28]}  a5 {[%clk 0:00:19]} 72. Rb6 {[%clk 0:00:28]}  Ke7 {[%clk 0:00:16]} 73. Rb7+ {[%clk 0:00:28]}  Kd6 {[%clk 0:00:16]} 74. Ra7 {[%clk 0:00:28]}  Ke5 {[%clk 0:00:16]} 75. Re7+ {[%clk 0:00:28]}  Kf4 {[%clk 0:00:16]} 76. Re6 {[%clk 0:00:25]}  Ra1 {[%clk 0:00:16]} 77. Kg6 {[%clk 0:00:24]}  Kxg4 {[%clk 0:00:16]} 78. Kxf6 {[%clk 0:00:24]}  a4 {[%clk 0:00:16]} 79. Ra6 {[%clk 0:00:24]}  a3 {[%clk 0:00:16]} 80. Kg6 {[%clk 0:00:24]}  a2 {[%clk 0:00:16]} 81. f6 {[%clk 0:00:25]}  Kh4 {[%clk 0:00:15]} 82. Kf7 {[%clk 0:00:24]}  Kg5 {[%clk 0:00:16]} 83. Kf8 {[%clk 0:00:24]}  Rf1 {[%clk 0:00:13]} 84. Rxa2 {[%clk 0:00:23]}  Rxf6+ {[%clk 0:00:13]} 1/2-1/2


[Site "https://www.chess.com"]